[Event "Early-Titled-Tuesday-Blitz-January-16-2024"]
[Site "Chess.com"]
[Date "2024.01.16"]
[Round "3"]
[White "Hikaru"]
[Black "FrenchHarvey"]
[Result "1-0"]
[WhiteElo "3224"]
[BlackElo "2804"]
[TimeControl "180+1"]
[EndTime "8:27:58 PST"]
[Termination "Hikaru won by resignation"]

1. Nf3 {[%clk 0:03:00.9]} 1... Nf6 {[%clk 0:02:58.8]} 2. b3 {[%clk 0:03:00.3]}
2... d5 {[%clk 0:02:57]} 3. c4 {[%clk 0:03:00.3]} 3... c6 {[%clk 0:02:56.9]} 4.
Qc2 {[%clk 0:02:56.3]} 4... g6 {[%clk 0:02:48]} 5. Bb2 {[%clk 0:02:55.9]} 5...
Bg7 {[%clk 0:02:48.4]} 6. g3 {[%clk 0:02:56.2]} 6... O-O {[%clk 0:02:48.6]} 7.
Bg2 {[%clk 0:02:56.7]} 7... Bf5 {[%clk 0:02:36.5]} 8. d3 {[%clk 0:02:57]} 8...
a5 {[%clk 0:02:32]} 9. a3 {[%clk 0:02:56.3]} 9... a4 {[%clk 0:02:25.7]} 10. b4
{[%clk 0:02:56.2]} 10... dxc4 {[%clk 0:02:24.3]} 11. Qxc4 {[%clk 0:02:55.8]}
11... Nbd7 {[%clk 0:02:24.3]} 12. Nbd2 {[%clk 0:02:55.6]} 12... Nb6 {[%clk
0:02:23.8]} 13. Qc2 {[%clk 0:02:55.4]} 13... Qc8 {[%clk 0:02:07.4]} 14. O-O
{[%clk 0:02:37.9]} 14... Bh3 {[%clk 0:02:07]} 15. e4 {[%clk 0:02:38.4]} 15...
Bxg2 {[%clk 0:02:04]} 16. Kxg2 {[%clk 0:02:38.8]} 16... Nbd7 {[%clk 0:01:56.5]}
17. d4 {[%clk 0:02:25.8]} 17... e6 {[%clk 0:01:51.9]} 18. Rad1 {[%clk
0:02:16.6]} 18... Qc7 {[%clk 0:01:46.9]} 19. Nb1 {[%clk 0:02:15.3]} 19... Qb6
{[%clk 0:01:45.2]} 20. Nc3 {[%clk 0:02:14.7]} 20... Qa6 {[%clk 0:01:44.7]} 21.
Ne1 {[%clk 0:02:12.5]} 21... Nb6 {[%clk 0:01:43.3]} 22. Nd3 {[%clk 0:02:12.2]}
22... Nc4 {[%clk 0:01:40.4]} 23. Nc5 {[%clk 0:02:08.8]} 23... Qa7 {[%clk
0:01:40.6]} 24. Bc1 {[%clk 0:02:09]} 24... b5 {[%clk 0:01:34.1]} 25. e5 {[%clk
0:02:04.6]} 25... Nd5 {[%clk 0:01:32.5]} 26. N3e4 {[%clk 0:01:59.9]} 26... Qe7
{[%clk 0:01:26.7]} 27. Rfe1 {[%clk 0:01:57.5]} 27... Rad8 {[%clk 0:01:23.2]} 28.
Bg5 {[%clk 0:01:55.3]} 28... f6 {[%clk 0:01:21.4]} 29. exf6 {[%clk 0:01:55.5]}
29... Nxf6 {[%clk 0:01:21]} 30. Rd3 {[%clk 0:01:08.1]} 30... Rd5 {[%clk
0:00:49.8]} 31. Nxe6 {[%clk 0:01:01.9]} 31... Qxe6 {[%clk 0:00:45.3]} 32. Nxf6+
{[%clk 0:01:02]} 32... Qxf6 {[%clk 0:00:45.3]} 33. Bxf6 {[%clk 0:01:02.3]} 33...
Rxf6 {[%clk 0:00:44.8]} 34. Re8+ {[%clk 0:01:00.1]} 34... Kf7 {[%clk 0:00:44]}
35. Qe2 {[%clk 0:00:59.4]} 35... Bf8 {[%clk 0:00:40.3]} 36. Rc8 {[%clk
0:00:54.9]} 36... Re6 {[%clk 0:00:34.6]} 37. Rxf8+ {[%clk 0:00:54.4]} 1-0

[Event "Early-Titled-Tuesday-Blitz-January-16-2024"]
[Site "Chess.com"]
[Date "2024.01.16"]
[Round "3"]
[White "vugarrasulov"]
[Black "Hamisandwich"]
[Result "1-0"]
[WhiteElo "2969"]
[BlackElo "2719"]
[TimeControl "180+1"]
[EndTime "8:27:58 PST"]
[Termination "vugarrasulov won by resignation"]

1. d4 {[%clk 0:03:00.9]} 1... Nf6 {[%clk 0:03:00]} 2. c4 {[%clk 0:03:01.6]} 2...
b6 {[%clk 0:02:59.2]} 3. Nf3 {[%clk 0:03:01.1]} 3... Bb7 {[%clk 0:02:59.5]} 4.
Nc3 {[%clk 0:03:01.2]} 4... e6 {[%clk 0:02:59.4]} 5. a3 {[%clk 0:03:01]} 5...
Be7 {[%clk 0:02:54.7]} 6. Bf4 {[%clk 0:03:00.8]} 6... O-O {[%clk 0:02:49]} 7. e3
{[%clk 0:03:01.4]} 7... d5 {[%clk 0:02:47.6]} 8. Rc1 {[%clk 0:02:56.9]} 8... c5
{[%clk 0:02:35.2]} 9. dxc5 {[%clk 0:02:57.2]} 9... bxc5 {[%clk 0:02:32.8]} 10.
cxd5 {[%clk 0:02:54.6]} 10... exd5 {[%clk 0:02:31.3]} 11. Bd3 {[%clk 0:02:54]}
11... d4 {[%clk 0:02:24.5]} 12. exd4 {[%clk 0:02:51.6]} 12... cxd4 {[%clk
0:02:22.3]} 13. Nb5 {[%clk 0:02:47.4]} 13... Nd5 {[%clk 0:02:19.7]} 14. Bg3
{[%clk 0:02:46.7]} 14... Nc6 {[%clk 0:02:08.6]} 15. O-O {[%clk 0:02:46.4]} 15...
Qb6 {[%clk 0:01:49.4]} 16. Re1 {[%clk 0:02:39.6]} 16... Rad8 {[%clk 0:01:25.2]}
17. Ne5 {[%clk 0:02:17.8]} 17... Nxe5 {[%clk 0:01:17.1]} 18. Bxe5 {[%clk
0:02:18.7]} 18... Bf6 {[%clk 0:01:17.8]} 19. Bg3 {[%clk 0:02:07.2]} 19... a6
{[%clk 0:01:11.6]} 20. Nc7 {[%clk 0:02:07]} 20... Rd7 {[%clk 0:00:43.3]} 21.
Nxd5 {[%clk 0:02:04.4]} 21... Rxd5 {[%clk 0:00:39.9]} 22. b4 {[%clk 0:02:02.2]}
22... g6 {[%clk 0:00:31.1]} 23. h3 {[%clk 0:01:52.7]} 23... Kg7 {[%clk
0:00:27.7]} 24. Re2 {[%clk 0:01:31.6]} 24... Rc8 {[%clk 0:00:24.3]} 25. Rxc8
{[%clk 0:01:30.2]} 25... Bxc8 {[%clk 0:00:25.2]} 26. Rc2 {[%clk 0:01:21.7]}
26... Bf5 {[%clk 0:00:23.9]} 27. Bxf5 {[%clk 0:01:21.6]} 27... Rxf5 {[%clk
0:00:24.8]} 28. Qd3 {[%clk 0:01:21.5]} 28... Qb5 {[%clk 0:00:24]} 29. Qxb5
{[%clk 0:01:14.1]} 29... Rxb5 {[%clk 0:00:24.5]} 30. Rc5 {[%clk 0:01:14.6]}
30... Rxc5 {[%clk 0:00:20.5]} 31. bxc5 {[%clk 0:01:15.5]} 31... Kf8 {[%clk
0:00:20.7]} 32. Kf1 {[%clk 0:01:14.8]} 32... d3 {[%clk 0:00:21.3]} 33. Bd6+
{[%clk 0:01:06.3]} 33... Ke8 {[%clk 0:00:21.3]} 34. c6 {[%clk 0:01:06.9]} 34...
Be7 {[%clk 0:00:19.5]} 35. c7 {[%clk 0:01:06.8]} 35... Kd7 {[%clk 0:00:19.8]}
36. Bxe7 {[%clk 0:01:07.1]} 36... Kxc7 {[%clk 0:00:19.3]} 37. Ke1 {[%clk
0:01:07.7]} 1-0

[Event "Early-Titled-Tuesday-Blitz-January-16-2024"]
[Site "Chess.com"]
[Date "2024.01.16"]
[Round "3"]
[White "Real_taiatai"]
[Black "ValentinDragnev"]
[Result "0-1"]
[WhiteElo "2507"]
[BlackElo "2769"]
[TimeControl "180+1"]
[EndTime "8:27:59 PST"]
[Termination "ValentinDragnev won by checkmate"]

1. e4 {[%clk 0:03:00.9]} 1... c5 {[%clk 0:02:59]} 2. Nf3 {[%clk 0:02:57.8]} 2...
e6 {[%clk 0:02:59.4]} 3. d4 {[%clk 0:02:57.7]} 3... cxd4 {[%clk 0:03:00.3]} 4.
Nxd4 {[%clk 0:02:58.6]} 4... Nc6 {[%clk 0:03:01]} 5. Nc3 {[%clk 0:02:57.8]} 5...
Qc7 {[%clk 0:03:01.5]} 6. Be2 {[%clk 0:02:45.8]} 6... Nf6 {[%clk 0:02:59.8]} 7.
Be3 {[%clk 0:02:43.4]} 7... a6 {[%clk 0:02:55.6]} 8. Qd2 {[%clk 0:02:32.3]} 8...
Bb4 {[%clk 0:02:53.9]} 9. f3 {[%clk 0:02:29.3]} 9... d5 {[%clk 0:02:52.5]} 10.
Nxc6 {[%clk 0:02:26.9]} 10... bxc6 {[%clk 0:02:43.3]} 11. a3 {[%clk 0:02:23.2]}
11... Bd6 {[%clk 0:02:27.9]} 12. g3 {[%clk 0:01:51.9]} 12... Rb8 {[%clk
0:02:23.4]} 13. Rb1 {[%clk 0:01:35.4]} 13... h5 {[%clk 0:02:12.8]} 14. Bg5
{[%clk 0:01:31.2]} 14... Nh7 {[%clk 0:01:49.3]} 15. Be3 {[%clk 0:01:25.4]} 15...
h4 {[%clk 0:01:46.7]} 16. f4 {[%clk 0:01:23.1]} 16... Nf6 {[%clk 0:01:42]} 17.
e5 {[%clk 0:01:21.1]} 17... hxg3 {[%clk 0:01:36.5]} 18. exd6 {[%clk 0:01:09.2]}
18... Qxd6 {[%clk 0:01:33]} 19. Bf3 {[%clk 0:01:09.5]} 19... c5 {[%clk
0:01:30.3]} 20. hxg3 {[%clk 0:00:35.1]} 20... Rxh1+ {[%clk 0:01:31.2]} 21. Bxh1
{[%clk 0:00:35.8]} 21... Bb7 {[%clk 0:01:32.1]} 22. Na4 {[%clk 0:00:28.3]} 22...
d4 {[%clk 0:01:29.7]} 23. Bxb7 {[%clk 0:00:27.2]} 23... Rxb7 {[%clk 0:01:30.6]}
24. Bf2 {[%clk 0:00:25.4]} 24... Qc6 {[%clk 0:01:27.4]} 25. Qa5 {[%clk
0:00:18.3]} 25... Qh1+ {[%clk 0:01:22.9]} 26. Kd2 {[%clk 0:00:19]} 26... Ne4+
{[%clk 0:01:11.6]} 27. Ke2 {[%clk 0:00:16]} 27... Qxb1 {[%clk 0:01:11.8]} 28.
Qxa6 {[%clk 0:00:14.8]} 28... Qxc2+ {[%clk 0:01:09.1]} 29. Kf3 {[%clk
0:00:15.4]} 29... Qxf2+ {[%clk 0:01:06.8]} 30. Kxe4 {[%clk 0:00:15.8]} 30...
Qe3# {[%clk 0:01:06.2]} 0-1

[Event "Early-Titled-Tuesday-Blitz-January-16-2024"]
[Site "Chess.com"]
[Date "2024.01.16"]
[Round "3"]
[White "rasmussvane"]
[Black "chenxiaoyuer"]
[Result "1-0"]
[WhiteElo "3010"]
[BlackElo "2732"]
[TimeControl "180+1"]
[EndTime "8:28:02 PST"]
[Termination "rasmussvane won by checkmate"]

1. Nf3 {[%clk 0:03:00.4]} 1... Nf6 {[%clk 0:02:59.9]} 2. g3 {[%clk 0:02:59.8]}
2... g6 {[%clk 0:03:00.5]} 3. Bg2 {[%clk 0:02:59.8]} 3... Bg7 {[%clk 0:03:01.3]}
4. d4 {[%clk 0:02:59.5]} 4... O-O {[%clk 0:03:02.2]} 5. O-O {[%clk 0:02:59.7]}
5... d6 {[%clk 0:03:02.4]} 6. Re1 {[%clk 0:02:59.6]} 6... Nbd7 {[%clk
0:02:34.6]} 7. e4 {[%clk 0:02:58.4]} 7... e5 {[%clk 0:02:33.6]} 8. Nc3 {[%clk
0:02:58.6]} 8... c6 {[%clk 0:02:33]} 9. a4 {[%clk 0:02:58.5]} 9... a5 {[%clk
0:02:32.1]} 10. h3 {[%clk 0:02:58.6]} 10... Qc7 {[%clk 0:02:29]} 11. Be3 {[%clk
0:02:58.6]} 11... Rd8 {[%clk 0:02:27.9]} 12. Qd2 {[%clk 0:02:52.7]} 12... exd4
{[%clk 0:02:04.9]} 13. Nxd4 {[%clk 0:02:42.2]} 13... Ne5 {[%clk 0:02:05.3]} 14.
b3 {[%clk 0:02:42.3]} 14... d5 {[%clk 0:01:41.1]} 15. f4 {[%clk 0:02:05.7]}
15... Ned7 {[%clk 0:01:32.6]} 16. e5 {[%clk 0:02:05.5]} 16... Ne8 {[%clk
0:01:24.1]} 17. Rad1 {[%clk 0:02:03.2]} 17... Nf8 {[%clk 0:01:20.6]} 18. Qf2
{[%clk 0:01:58.7]} 18... f6 {[%clk 0:00:59]} 19. Nf3 {[%clk 0:01:35]} 19... Qf7
{[%clk 0:00:52.2]} 20. Bb6 {[%clk 0:01:32.1]} 20... Nc7 {[%clk 0:00:49.2]} 21.
g4 {[%clk 0:00:44]} 21... fxe5 {[%clk 0:00:37.1]} 22. Nxe5 {[%clk 0:00:44]}
22... Bxe5 {[%clk 0:00:37.4]} 23. Rxe5 {[%clk 0:00:44.9]} 23... Be6 {[%clk
0:00:30.4]} 24. f5 {[%clk 0:00:43.3]} 24... gxf5 {[%clk 0:00:28]} 25. gxf5
{[%clk 0:00:44.2]} 25... Bc8 {[%clk 0:00:28.5]} 26. Qg3+ {[%clk 0:00:40.4]}
26... Kh8 {[%clk 0:00:27.4]} 27. Re7 {[%clk 0:00:37.2]} 27... Qxe7 {[%clk
0:00:22.3]} 28. Bd4+ {[%clk 0:00:37.1]} 28... Qf6 {[%clk 0:00:22.7]} 29. Bxf6#
{[%clk 0:00:37.4]} 1-0

[Event "Early-Titled-Tuesday-Blitz-January-16-2024"]
[Site "Chess.com"]
[Date "2024.01.16"]
[Round "3"]
[White "cycygogne"]
[Black "IamSchrodingersCat"]
[Result "1/2-1/2"]
[WhiteElo "2294"]
[BlackElo "2565"]
[TimeControl "180+1"]
[EndTime "8:28:02 PST"]
[Termination "Game drawn by repetition"]

1. Nf3 {[%clk 0:03:00.9]} 1... Nf6 {[%clk 0:02:52.9]} 2. b3 {[%clk 0:03:01.1]}
2... g6 {[%clk 0:02:52.8]} 3. Bb2 {[%clk 0:03:01.5]} 3... Bg7 {[%clk 0:02:53.1]}
4. e3 {[%clk 0:03:01.9]} 4... O-O {[%clk 0:02:53.1]} 5. d4 {[%clk 0:03:01.5]}
5... d6 {[%clk 0:02:53.3]} 6. c4 {[%clk 0:03:01.1]} 6... Nbd7 {[%clk 0:02:52.9]}
7. Be2 {[%clk 0:03:01.4]} 7... Re8 {[%clk 0:02:52.9]} 8. O-O {[%clk 0:03:01.7]}
8... h5 {[%clk 0:02:52.8]} 9. h4 {[%clk 0:02:59.4]} 9... c6 {[%clk 0:02:48.4]}
10. Nc3 {[%clk 0:02:58.1]} 10... e5 {[%clk 0:02:48.1]} 11. dxe5 {[%clk
0:02:57.2]} 11... dxe5 {[%clk 0:02:49]} 12. Qc2 {[%clk 0:02:49]} 12... Nc5
{[%clk 0:02:32.8]} 13. Rad1 {[%clk 0:02:45.6]} 13... Qc7 {[%clk 0:02:28.8]} 14.
b4 {[%clk 0:02:44.6]} 14... Bf5 {[%clk 0:02:22.9]} 15. Qc1 {[%clk 0:02:38.2]}
15... Nce4 {[%clk 0:02:21.2]} 16. Nxe4 {[%clk 0:02:38.4]} 16... Nxe4 {[%clk
0:02:20.2]} 17. Bd3 {[%clk 0:02:28]} 17... Rad8 {[%clk 0:02:07.4]} 18. Bxe4
{[%clk 0:02:27.7]} 18... Bxe4 {[%clk 0:02:05.8]} 19. Ng5 {[%clk 0:02:27.9]}
19... Bf5 {[%clk 0:02:01.5]} 20. e4 {[%clk 0:02:21.8]} 20... Bg4 {[%clk
0:01:57.3]} 21. f3 {[%clk 0:02:18.7]} 21... Bc8 {[%clk 0:01:56.5]} 22. c5 {[%clk
0:02:15.8]} 22... Be6 {[%clk 0:01:30]} 23. Rxd8 {[%clk 0:02:09.8]} 23... Qxd8
{[%clk 0:01:27.8]} 24. Rd1 {[%clk 0:02:07.2]} 24... Qe7 {[%clk 0:01:27.5]} 25.
Nxe6 {[%clk 0:02:04.3]} 25... Qxe6 {[%clk 0:01:28.4]} 26. a4 {[%clk 0:02:00.9]}
26... Bf6 {[%clk 0:01:23.4]} 27. Rd6 {[%clk 0:01:49.2]} 27... Qe7 {[%clk
0:01:07.1]} 28. Qh6 {[%clk 0:01:49]} 28... Bxh4 {[%clk 0:00:48.4]} 29. f4 {[%clk
0:01:49.2]} 29... Bf6 {[%clk 0:00:37.1]} 30. f5 {[%clk 0:01:18.7]} 30... Bg5
{[%clk 0:00:28.9]} 31. Rxg6+ {[%clk 0:01:16.9]} 31... fxg6 {[%clk 0:00:29.5]}
32. Qxg6+ {[%clk 0:01:17.2]} 32... Kf8 {[%clk 0:00:24.5]} 33. Bxe5 {[%clk
0:01:05.5]} 33... Qxe5 {[%clk 0:00:22.1]} 34. Qxg5 {[%clk 0:01:05.9]} 34... Qxe4
{[%clk 0:00:18.1]} 35. Qf6+ {[%clk 0:01:04.2]} 35... Kg8 {[%clk 0:00:16.1]} 36.
Qg6+ {[%clk 0:01:04.6]} 36... Kh8 {[%clk 0:00:16.7]} 37. Qh6+ {[%clk 0:01:05]}
37... Kg8 {[%clk 0:00:17.6]} 38. Qg6+ {[%clk 0:01:05.4]} 38... Kh8 {[%clk
0:00:18.5]} 39. Qh6+ {[%clk 0:01:05.7]} 39... Kg8 {[%clk 0:00:19.1]} 40. Qg6+
{[%clk 0:01:06.2]} 1/2-1/2

[Event "Early-Titled-Tuesday-Blitz-January-16-2024"]
[Site "Chess.com"]
[Date "2024.01.16"]
[Round "3"]
[White "K_A_S_T_O_R"]
[Black "Aguiar94"]
[Result "1-0"]
[WhiteElo "2902"]
[BlackElo "2524"]
[TimeControl "180+1"]
[EndTime "8:28:07 PST"]
[Termination "K_A_S_T_O_R won by resignation"]

1. e4 {[%clk 0:03:00.7]} 1... c5 {[%clk 0:02:59.3]} 2. Nf3 {[%clk 0:03:00.2]}
2... Nc6 {[%clk 0:02:59]} 3. d4 {[%clk 0:02:59.7]} 3... cxd4 {[%clk 0:02:59.9]}
4. Nxd4 {[%clk 0:02:59.9]} 4... e6 {[%clk 0:03:00.3]} 5. Nb5 {[%clk 0:02:59.6]}
5... d6 {[%clk 0:03:00.1]} 6. c4 {[%clk 0:02:59.2]} 6... a6 {[%clk 0:02:58.8]}
7. N5c3 {[%clk 0:02:58.9]} 7... Nf6 {[%clk 0:02:59.4]} 8. Be2 {[%clk 0:02:58.5]}
8... Be7 {[%clk 0:02:54.7]} 9. O-O {[%clk 0:02:58.7]} 9... O-O {[%clk
0:02:55.3]} 10. Na3 {[%clk 0:02:59.3]} 10... b6 {[%clk 0:02:55]} 11. Be3 {[%clk
0:02:59.2]} 11... Bb7 {[%clk 0:02:54.1]} 12. Rc1 {[%clk 0:02:59.4]} 12... Rc8
{[%clk 0:02:44.9]} 13. Qd2 {[%clk 0:02:58.1]} 13... Ne5 {[%clk 0:02:40.1]} 14.
f3 {[%clk 0:02:57.1]} 14... Qc7 {[%clk 0:02:38.7]} 15. Rfd1 {[%clk 0:02:55.5]}
15... Rfe8 {[%clk 0:02:37.5]} 16. Kh1 {[%clk 0:02:55.4]} 16... Ned7 {[%clk
0:02:37.9]} 17. Bf1 {[%clk 0:02:55.4]} 17... Qb8 {[%clk 0:02:38.4]} 18. Rc2
{[%clk 0:02:54.7]} 18... d5 {[%clk 0:01:44.2]} 19. exd5 {[%clk 0:02:47.8]} 19...
exd5 {[%clk 0:01:38.8]} 20. Nxd5 {[%clk 0:02:27.9]} 20... Nxd5 {[%clk
0:01:22.9]} 21. cxd5 {[%clk 0:02:23.9]} 21... Rxc2 {[%clk 0:01:07.2]} 22. Nxc2
{[%clk 0:02:23.1]} 22... Bd6 {[%clk 0:01:07.8]} 23. Bg1 {[%clk 0:02:12.2]} 23...
Nf6 {[%clk 0:01:04.2]} 24. Bc4 {[%clk 0:02:08.6]} 24... b5 {[%clk 0:01:02.4]}
25. Bb3 {[%clk 0:02:08.5]} 25... h5 {[%clk 0:00:58.3]} 26. Nb4 {[%clk 0:01:55]}
26... Bf4 {[%clk 0:00:40.3]} 27. Qf2 {[%clk 0:01:50.4]} 27... Qd6 {[%clk
0:00:36.2]} 28. Nd3 {[%clk 0:01:44.9]} 28... Be3 {[%clk 0:00:33.5]} 29. Qg3
{[%clk 0:01:44.7]} 29... Qxg3 {[%clk 0:00:30.7]} 30. hxg3 {[%clk 0:01:45.6]}
30... Bxg1 {[%clk 0:00:30.8]} 31. Kxg1 {[%clk 0:01:45.2]} 31... Bxd5 {[%clk
0:00:31.4]} 32. Bxd5 {[%clk 0:01:40.6]} 32... Nxd5 {[%clk 0:00:32.3]} 33. Nc5
{[%clk 0:01:41.2]} 33... Nc7 {[%clk 0:00:14.5]} 34. Rd7 {[%clk 0:01:39.1]} 34...
Rc8 {[%clk 0:00:14.7]} 35. b4 {[%clk 0:01:37.2]} 35... Kf8 {[%clk 0:00:14.9]}
36. Rd6 {[%clk 0:01:33.9]} 36... a5 {[%clk 0:00:12.5]} 37. Rc6 {[%clk
0:01:26.1]} 37... Ne8 {[%clk 0:00:12.1]} 38. Rxc8 {[%clk 0:01:25.6]} 1-0

[Event "Early-Titled-Tuesday-Blitz-January-16-2024"]
[Site "Chess.com"]
[Date "2024.01.16"]
[Round "3"]
[White "KVAIDAN"]
[Black "A-Fier"]
[Result "0-1"]
[WhiteElo "2403"]
[BlackElo "2809"]
[TimeControl "180+1"]
[EndTime "8:28:11 PST"]
[Termination "A-Fier won by resignation"]

1. f4 {[%clk 0:03:00.9]} 1... f5 {[%clk 0:02:56.2]} 2. e4 {[%clk 0:03:00.1]}
2... fxe4 {[%clk 0:02:52.3]} 3. d3 {[%clk 0:03:00.4]} 3... e5 {[%clk 0:02:52.3]}
4. dxe4 {[%clk 0:02:56.5]} 4... Nf6 {[%clk 0:02:50]} 5. Nf3 {[%clk 0:02:49.6]}
5... d6 {[%clk 0:02:46.9]} 6. Nc3 {[%clk 0:02:48.6]} 6... Nc6 {[%clk 0:02:46.9]}
7. Bc4 {[%clk 0:02:47.1]} 7... Bg4 {[%clk 0:02:46.7]} 8. Be3 {[%clk 0:02:41.1]}
8... Qd7 {[%clk 0:02:45.9]} 9. O-O {[%clk 0:02:36.9]} 9... O-O-O {[%clk
0:02:42.3]} 10. Bb5 {[%clk 0:02:28.9]} 10... a6 {[%clk 0:02:39.7]} 11. Bxc6
{[%clk 0:02:21.8]} 11... Qxc6 {[%clk 0:02:38.4]} 12. Qe2 {[%clk 0:02:02.1]}
12... Nxe4 {[%clk 0:02:32.9]} 13. Nxe4 {[%clk 0:01:59.6]} 13... Qxe4 {[%clk
0:02:33.8]} 14. h3 {[%clk 0:01:49.8]} 14... exf4 {[%clk 0:02:29.1]} 15. hxg4
{[%clk 0:01:44.4]} 15... Qxe3+ {[%clk 0:02:27.8]} 16. Qxe3 {[%clk 0:01:43.9]}
16... fxe3 {[%clk 0:02:28.7]} 17. c4 {[%clk 0:01:42.1]} 17... g6 {[%clk
0:02:27.2]} 18. Ng5 {[%clk 0:01:41.9]} 18... Re8 {[%clk 0:02:27.3]} 19. Rf7
{[%clk 0:01:36.9]} 19... Bh6 {[%clk 0:02:21.7]} 20. Nf3 {[%clk 0:01:27]} 20...
Rhf8 {[%clk 0:01:58.6]} 21. Rxf8 {[%clk 0:01:15.8]} 21... Bxf8 {[%clk
0:01:56.5]} 22. Kf1 {[%clk 0:01:11.4]} 22... Bg7 {[%clk 0:01:54]} 23. Rb1 {[%clk
0:01:10.9]} 23... Re4 {[%clk 0:01:51.7]} 24. Ke2 {[%clk 0:01:10.5]} 24... Rxg4
{[%clk 0:01:51.1]} 25. Kxe3 {[%clk 0:01:07.9]} 25... Rxg2 {[%clk 0:01:51.3]} 26.
b4 {[%clk 0:01:05.7]} 26... Rxa2 {[%clk 0:01:50.3]} 27. Rh1 {[%clk 0:01:05.3]}
27... h5 {[%clk 0:01:49.2]} 28. Rg1 {[%clk 0:01:04.4]} 28... Bh6+ {[%clk
0:01:46]} 29. Kd3 {[%clk 0:00:57.9]} 29... Ra3+ {[%clk 0:01:46.1]} 30. Ke2
{[%clk 0:00:56.4]} 30... g5 {[%clk 0:01:45.5]} 31. Nxg5 {[%clk 0:00:54.8]} 31...
Bxg5 {[%clk 0:01:45.7]} 32. Rxg5 {[%clk 0:00:54.7]} 32... Rb3 {[%clk 0:01:45.9]}
33. b5 {[%clk 0:00:54.5]} 33... axb5 {[%clk 0:01:45.2]} 34. cxb5 {[%clk
0:00:54.2]} 34... h4 {[%clk 0:01:45.6]} 35. Kf2 {[%clk 0:00:54.4]} 35... h3
{[%clk 0:01:45.6]} 36. Rh5 {[%clk 0:00:53]} 36... Kb8 {[%clk 0:01:45.7]} 37. Ke2
{[%clk 0:00:53.3]} 37... Ka7 {[%clk 0:01:45.9]} 38. Kd2 {[%clk 0:00:53.8]} 38...
Kb6 {[%clk 0:01:46.3]} 39. Kc2 {[%clk 0:00:54.3]} 39... Rg3 {[%clk 0:01:43.9]}
40. Kb2 {[%clk 0:00:53.4]} 40... Rg2+ {[%clk 0:01:43.4]} 41. Kb3 {[%clk
0:00:53.7]} 41... h2 {[%clk 0:01:44.3]} 42. Kb4 {[%clk 0:00:51.1]} 42... d5
{[%clk 0:01:43.1]} 43. Kc3 {[%clk 0:00:50.7]} 43... c6 {[%clk 0:01:40]} 44. bxc6
{[%clk 0:00:50.1]} 44... bxc6 {[%clk 0:01:40.9]} 45. Kd4 {[%clk 0:00:50.4]}
45... Ra2 {[%clk 0:01:40.1]} 46. Rh8 {[%clk 0:00:48]} 46... Rd2+ {[%clk
0:01:34.1]} 47. Kc3 {[%clk 0:00:46.9]} 47... Rg2 {[%clk 0:01:34.3]} 48. Kd4
{[%clk 0:00:46.9]} 48... Kb5 {[%clk 0:01:25.9]} 49. Rb8+ {[%clk 0:00:45.7]}
49... Ka4 {[%clk 0:01:26.3]} 50. Rh8 {[%clk 0:00:42.2]} 50... Kb3 {[%clk
0:01:26.3]} 51. Rh3+ {[%clk 0:00:41]} 51... Kc2 {[%clk 0:01:26.3]} 52. Kc5
{[%clk 0:00:40.8]} 52... Kd2 {[%clk 0:01:22.7]} 53. Kd4 {[%clk 0:00:40.8]} 53...
Ke2 {[%clk 0:01:22.7]} 54. Kc5 {[%clk 0:00:40]} 54... Kf2 {[%clk 0:01:22.7]} 55.
Rh8 {[%clk 0:00:39.5]} 55... Kg1 {[%clk 0:01:22.8]} 56. Kxc6 {[%clk 0:00:39.5]}
56... d4 {[%clk 0:01:21.8]} 0-1

[Event "Early-Titled-Tuesday-Blitz-January-16-2024"]
[Site "Chess.com"]
[Date "2024.01.16"]
[Round "3"]
[White "Zapateado"]
[Black "ahkashefi2800"]
[Result "0-1"]
[WhiteElo "2361"]
[BlackElo "2553"]
[TimeControl "180+1"]
[EndTime "8:28:16 PST"]
[Termination "ahkashefi2800 won on time"]

1. c4 {[%clk 0:03:00.9]} 1... c6 {[%clk 0:02:59.9]} 2. e4 {[%clk 0:03:00.6]}
2... d5 {[%clk 0:03:00.8]} 3. cxd5 {[%clk 0:03:01.5]} 3... cxd5 {[%clk
0:03:01.1]} 4. exd5 {[%clk 0:03:02.4]} 4... Nf6 {[%clk 0:03:01.9]} 5. Nc3 {[%clk
0:03:02.8]} 5... g6 {[%clk 0:03:02.8]} 6. Bc4 {[%clk 0:03:02.6]} 6... Bg7 {[%clk
0:03:03.7]} 7. Nf3 {[%clk 0:03:03]} 7... O-O {[%clk 0:03:04.1]} 8. O-O {[%clk
0:03:03.6]} 8... Nbd7 {[%clk 0:03:04.2]} 9. Qb3 {[%clk 0:03:03.7]} 9... Nc5
{[%clk 0:03:04.1]} 10. Qd1 {[%clk 0:03:02]} 10... Bf5 {[%clk 0:03:04.3]} 11. d4
{[%clk 0:03:01.1]} 11... Nce4 {[%clk 0:03:04.1]} 12. Qb3 {[%clk 0:02:57.4]}
12... Nd6 {[%clk 0:02:57.6]} 13. Be2 {[%clk 0:02:53.4]} 13... a6 {[%clk
0:02:48.6]} 14. a4 {[%clk 0:02:51.2]} 14... Rc8 {[%clk 0:02:47.5]} 15. Bf4
{[%clk 0:02:46.2]} 15... Nfe4 {[%clk 0:02:39.5]} 16. Nxe4 {[%clk 0:02:06.6]}
16... Bxe4 {[%clk 0:02:37.3]} 17. Rac1 {[%clk 0:02:07]} 17... Qd7 {[%clk
0:02:31.2]} 18. Bxd6 {[%clk 0:01:30.5]} 18... exd6 {[%clk 0:02:17.8]} 19. Rfd1
{[%clk 0:01:10.1]} 19... Bh6 {[%clk 0:02:14.8]} 20. Rc3 {[%clk 0:00:59]} 20...
Rfe8 {[%clk 0:02:06.6]} 21. Bf1 {[%clk 0:00:44.8]} 21... Rxc3 {[%clk 0:02:02.4]}
22. Qxc3 {[%clk 0:00:39.3]} 22... Rc8 {[%clk 0:02:01.4]} 23. Qa3 {[%clk
0:00:29.3]} 23... Bxd5 {[%clk 0:01:59.6]} 24. b4 {[%clk 0:00:18.7]} 24... Qf5
{[%clk 0:01:39.7]} 25. b5 {[%clk 0:00:15.2]} 25... Bxf3 {[%clk 0:01:37.3]} 26.
Qxf3 {[%clk 0:00:16.1]} 26... Qxf3 {[%clk 0:01:36.3]} 27. gxf3 {[%clk 0:00:17]}
27... a5 {[%clk 0:01:33.4]} 28. Re1 {[%clk 0:00:12.5]} 28... Bg7 {[%clk
0:01:30.4]} 29. Re7 {[%clk 0:00:10.5]} 29... b6 {[%clk 0:01:30.1]} 30. d5 {[%clk
0:00:05]} 30... Bd4 {[%clk 0:01:26.5]} 31. Rd7 {[%clk 0:00:04.8]} 31... Bc5
{[%clk 0:01:26.3]} 32. Bh3 {[%clk 0:00:04.2]} 32... Re8 {[%clk 0:01:25.8]} 33.
Kg2 {[%clk 0:00:04.3]} 33... Re2 {[%clk 0:01:25.1]} 34. Rd8+ {[%clk 0:00:02.8]}
34... Kg7 {[%clk 0:01:25.1]} 35. Rd7 {[%clk 0:00:03.7]} 35... Rxf2+ {[%clk
0:01:24.3]} 36. Kg3 {[%clk 0:00:04]} 36... Kf8 {[%clk 0:01:18.6]} 37. Rc7 {[%clk
0:00:03.4]} 37... Rc2 {[%clk 0:01:16]} 38. Kg4 {[%clk 0:00:01.7]} 38... h5+
{[%clk 0:01:14.9]} 0-1